[Event "Early-Titled-Tuesday-Blitz-February-06-2024"]
[Site "Chess.com"]
[Date "2024.02.06"]
[Round "7"]
[White "hakanazeri2"]
[Black "DonkyDonkyDonkey"]
[Result "0-1"]
[WhiteElo "2651"]
[BlackElo "2905"]
[TimeControl "180+1"]
[EndTime "9:19:49 PST"]
[Termination "DonkyDonkyDonkey won on time"]

1. Nf3 {[%clk 0:02:58.5]} 1... d5 {[%clk 0:02:59.5]} 2. d4 {[%clk 0:02:57.6]}
2... Nf6 {[%clk 0:02:58.9]} 3. c4 {[%clk 0:02:58.5]} 3... e6 {[%clk 0:02:59.1]}
4. g3 {[%clk 0:02:59.1]} 4... Be7 {[%clk 0:02:58.1]} 5. Bg2 {[%clk 0:03:00]}
5... O-O {[%clk 0:02:58.1]} 6. O-O {[%clk 0:02:59.1]} 6... a5 {[%clk 0:02:58.6]}
7. Nc3 {[%clk 0:02:56.2]} 7... c6 {[%clk 0:02:58.8]} 8. Qd3 {[%clk 0:02:56.2]}
8... b6 {[%clk 0:02:59]} 9. e4 {[%clk 0:02:56.2]} 9... dxc4 {[%clk 0:02:56.4]}
10. Qc2 {[%clk 0:02:52.5]} 10... b5 {[%clk 0:02:54]} 11. h4 {[%clk 0:02:50.8]}
11... b4 {[%clk 0:02:50.1]} 12. Na4 {[%clk 0:02:45.5]} 12... Ba6 {[%clk
0:02:47.3]} 13. Ne5 {[%clk 0:02:36]} 13... c3 {[%clk 0:02:35.1]} 14. Rd1 {[%clk
0:02:34]} 14... cxb2 {[%clk 0:02:34.8]} 15. Bxb2 {[%clk 0:02:29.2]} 15... Bb5
{[%clk 0:02:34.1]} 16. Nc5 {[%clk 0:02:23.3]} 16... Nbd7 {[%clk 0:02:26.4]} 17.
Ncxd7 {[%clk 0:02:19.6]} 17... Nxd7 {[%clk 0:02:27.3]} 18. Nxc6 {[%clk
0:02:20.3]} 18... Rc8 {[%clk 0:02:10.5]} 19. d5 {[%clk 0:02:03.3]} 19... Bxc6
{[%clk 0:02:08.8]} 20. dxc6 {[%clk 0:01:51.6]} 20... Qc7 {[%clk 0:02:09.4]} 21.
Qe2 {[%clk 0:01:30.3]} 21... Ne5 {[%clk 0:01:37.5]} 22. Rac1 {[%clk 0:01:08.1]}
22... Bf6 {[%clk 0:01:10.5]} 23. f4 {[%clk 0:01:00.8]} 23... Qb6+ {[%clk
0:01:10.2]} 24. Kh2 {[%clk 0:00:29]} 24... Ng4+ {[%clk 0:01:08.1]} 25. Qxg4
{[%clk 0:00:24.3]} 25... Bxb2 {[%clk 0:01:08.1]} 26. Rc2 {[%clk 0:00:23.4]}
26... Bc3 {[%clk 0:01:02.8]} 27. e5 {[%clk 0:00:23.1]} 27... Rxc6 {[%clk
0:00:52.7]} 28. Bxc6 {[%clk 0:00:21.9]} 28... Qxc6 {[%clk 0:00:53.6]} 29. h5
{[%clk 0:00:19.4]} 29... h6 {[%clk 0:00:53.5]} 30. Qe2 {[%clk 0:00:15.9]} 30...
Rc8 {[%clk 0:00:52.1]} 31. Rd6 {[%clk 0:00:13.5]} 31... Qc5 {[%clk 0:00:49.5]}
32. Rc1 {[%clk 0:00:14]} 32... Rf8 {[%clk 0:00:23.7]} 33. Rcd1 {[%clk
0:00:11.3]} 33... Qc7 {[%clk 0:00:21.1]} 34. Qe4 {[%clk 0:00:10.8]} 34... a4
{[%clk 0:00:19.5]} 35. Rd7 {[%clk 0:00:10.5]} 35... Qb6 {[%clk 0:00:20]} 36. Kh3
{[%clk 0:00:09.1]} 36... b3 {[%clk 0:00:20]} 37. axb3 {[%clk 0:00:09.2]} 37...
axb3 {[%clk 0:00:20.9]} 38. Qd3 {[%clk 0:00:09.9]} 38... b2 {[%clk 0:00:19.9]}
39. Rd8 {[%clk 0:00:07.3]} 39... Bb4 {[%clk 0:00:19.3]} 40. Rxf8+ {[%clk
0:00:06.1]} 40... Bxf8 {[%clk 0:00:20.2]} 41. Qc2 {[%clk 0:00:05.9]} 41... Qb5
{[%clk 0:00:19.6]} 42. Rb1 {[%clk 0:00:05.4]} 42... Qd5 {[%clk 0:00:18.9]} 43.
Qxb2 {[%clk 0:00:04.3]} 43... Qf3 {[%clk 0:00:19.2]} 44. Kh2 {[%clk 0:00:01.7]}
44... Qxh5+ {[%clk 0:00:19.4]} 45. Kg2 {[%clk 0:00:02.4]} 45... Qf5 {[%clk
0:00:19.7]} 46. Re1 {[%clk 0:00:03.1]} 46... g5 {[%clk 0:00:19.6]} 47. Qf2
{[%clk 0:00:03]} 47... Bb4 {[%clk 0:00:18.6]} 48. Rd1 {[%clk 0:00:02.4]} 48...
Qe4+ {[%clk 0:00:18.4]} 49. Qf3 {[%clk 0:00:02.6]} 49... Qc2+ {[%clk 0:00:18.8]}
50. Kh3 {[%clk 0:00:03.2]} 50... Be7 {[%clk 0:00:16.3]} 51. fxg5 {[%clk
0:00:02.2]} 51... hxg5 {[%clk 0:00:17]} 52. Rf1 {[%clk 0:00:02.4]} 52... Qh7+
{[%clk 0:00:17]} 53. Kg2 {[%clk 0:00:02.4]} 53... Qc2+ {[%clk 0:00:17.6]} 54.
Rf2 {[%clk 0:00:02.5]} 54... Qg6 {[%clk 0:00:18.1]} 55. g4 {[%clk 0:00:03.2]}
55... Bc5 {[%clk 0:00:17.2]} 56. Rf1 {[%clk 0:00:03.5]} 56... Bd4 {[%clk
0:00:16.6]} 57. Qa8+ {[%clk 0:00:01.4]} 57... Kg7 {[%clk 0:00:16.8]} 58. Qf3
{[%clk 0:00:01.8]} 58... Bxe5 {[%clk 0:00:17]} 59. Re1 {[%clk 0:00:02.5]} 59...
Bf4 {[%clk 0:00:17.1]} 60. Re2 {[%clk 0:00:03.4]} 60... Qf6 {[%clk 0:00:17.2]}
61. Qe4 {[%clk 0:00:02.6]} 61... Qh6 {[%clk 0:00:17.4]} 62. Qf3 {[%clk
0:00:02.9]} 62... Qh2+ {[%clk 0:00:17.5]} 63. Kf1 {[%clk 0:00:03.6]} 63... Qh6
{[%clk 0:00:17.9]} 64. Kg2 {[%clk 0:00:03.1]} 64... Qg6 {[%clk 0:00:18]} 65. Re1
{[%clk 0:00:02.6]} 65... Qf6 {[%clk 0:00:18.4]} 66. Re2 {[%clk 0:00:03.1]} 66...
Qd4 {[%clk 0:00:18.6]} 67. Qe4 {[%clk 0:00:03.5]} 67... Qd1 {[%clk 0:00:15.4]}
68. Qf3 {[%clk 0:00:04]} 68... Qc1 {[%clk 0:00:14.8]} 69. Rf2 {[%clk 0:00:03.9]}
69... Qc7 {[%clk 0:00:13.8]} 70. Re2 {[%clk 0:00:04]} 70... Qd6 {[%clk
0:00:14.1]} 71. Qc3+ {[%clk 0:00:03.9]} 71... f6 {[%clk 0:00:13.4]} 72. Qf3
{[%clk 0:00:03.6]} 72... Kg6 {[%clk 0:00:12.7]} 73. Qe4+ {[%clk 0:00:03.8]}
73... Kf7 {[%clk 0:00:11.3]} 74. Qh7+ {[%clk 0:00:04.1]} 74... Kf8 {[%clk
0:00:12]} 75. Qh8+ {[%clk 0:00:04]} 75... Kf7 {[%clk 0:00:12.6]} 76. Qh7+ {[%clk
0:00:04.6]} 76... Ke8 {[%clk 0:00:12.9]} 77. Qg8+ {[%clk 0:00:04.7]} 77... Kd7
{[%clk 0:00:12.6]} 78. Qf7+ {[%clk 0:00:04.7]} 78... Qe7 {[%clk 0:00:13.1]} 79.
Qg6 {[%clk 0:00:03.2]} 79... Qd6 {[%clk 0:00:12.3]} 80. Qxf6 {[%clk 0:00:02.8]}
80... Qd5+ {[%clk 0:00:12.2]} 81. Kf2 {[%clk 0:00:02.9]} 81... Bd6 {[%clk
0:00:12]} 82. Qf7+ {[%clk 0:00:03]} 82... Be7 {[%clk 0:00:11.4]} 83. Qf3 {[%clk
0:00:02.2]} 83... Bc5+ {[%clk 0:00:11.7]} 84. Kg2 {[%clk 0:00:02.8]} 84... Kd6
{[%clk 0:00:09.5]} 0-1

[Event "Early-Titled-Tuesday-Blitz-February-06-2024"]
[Site "Chess.com"]
[Date "2024.02.06"]
[Round "7"]
[White "nihalsarin"]
[Black "BillieKimbah"]
[Result "1/2-1/2"]
[WhiteElo "3121"]
[BlackElo "2958"]
[TimeControl "180+1"]
[EndTime "9:19:50 PST"]
[Termination "Game drawn by repetition"]

1. a3 {[%clk 0:03:00.9]} 1... a6 {[%clk 0:02:58.8]} 2. Nf3 {[%clk 0:02:58.9]}
2... Nf6 {[%clk 0:02:58.6]} 3. g3 {[%clk 0:02:56.8]} 3... g6 {[%clk 0:02:58.6]}
4. b4 {[%clk 0:02:56.4]} 4... b5 {[%clk 0:02:58.3]} 5. Bg2 {[%clk 0:02:56.4]}
5... Bb7 {[%clk 0:02:57.6]} 6. O-O {[%clk 0:02:56.7]} 6... Bg7 {[%clk
0:02:57.6]} 7. Bb2 {[%clk 0:02:57.5]} 7... O-O {[%clk 0:02:57.7]} 8. d3 {[%clk
0:02:58.3]} 8... d6 {[%clk 0:02:57.8]} 9. Nbd2 {[%clk 0:02:58.4]} 9... Nbd7
{[%clk 0:02:57.8]} 10. Nb3 {[%clk 0:02:58.1]} 10... Rc8 {[%clk 0:02:36.8]} 11.
c4 {[%clk 0:02:31.6]} 11... Nb6 {[%clk 0:02:32.6]} 12. Rc1 {[%clk 0:02:30.3]}
12... Na4 {[%clk 0:02:28.5]} 13. Ba1 {[%clk 0:02:30.7]} 13... c5 {[%clk
0:02:28.5]} 14. Na5 {[%clk 0:02:26.7]} 14... Ba8 {[%clk 0:02:28.1]} 15. Re1
{[%clk 0:02:18.3]} 15... Qb6 {[%clk 0:02:27]} 16. Qd2 {[%clk 0:01:58]} 16...
Rfd8 {[%clk 0:02:23.4]} 17. Rb1 {[%clk 0:01:57.6]} 17... Rb8 {[%clk 0:01:46.6]}
18. Rec1 {[%clk 0:01:56]} 18... Rdc8 {[%clk 0:01:46]} 19. h4 {[%clk 0:01:55.9]}
19... Qd8 {[%clk 0:01:42.5]} 20. Ne1 {[%clk 0:01:11.5]} 20... Bxg2 {[%clk
0:01:39.8]} 21. Nxg2 {[%clk 0:01:12.4]} 21... bxc4 {[%clk 0:01:38]} 22. dxc4
{[%clk 0:01:06.4]} 22... Qd7 {[%clk 0:01:22.2]} 23. Ne3 {[%clk 0:00:59.5]} 23...
Nb6 {[%clk 0:01:04.4]} 24. Qd3 {[%clk 0:00:53.8]} 24... Qe6 {[%clk 0:00:48.4]}
25. Ng2 {[%clk 0:00:31]} 25... Bh6 {[%clk 0:00:40.7]} 26. e3 {[%clk 0:00:31.3]}
26... Bg7 {[%clk 0:00:29.7]} 27. Nf4 {[%clk 0:00:31]} 27... Qg4 {[%clk
0:00:29.4]} 28. Kg2 {[%clk 0:00:21.1]} 28... Nbd7 {[%clk 0:00:29.2]} 29. b5
{[%clk 0:00:18.4]} 29... axb5 {[%clk 0:00:28]} 30. cxb5 {[%clk 0:00:19.3]} 30...
Ne5 {[%clk 0:00:22.1]} 31. Qd1 {[%clk 0:00:15.2]} 31... Qxd1 {[%clk 0:00:15.8]}
32. Rxd1 {[%clk 0:00:16.1]} 32... Ra8 {[%clk 0:00:14.7]} 33. Bc3 {[%clk
0:00:16.5]} 33... Nfd7 {[%clk 0:00:12.5]} 34. Nd5 {[%clk 0:00:14.9]} 34... Kf8
{[%clk 0:00:12.6]} 35. b6 {[%clk 0:00:15]} 35... Rcb8 {[%clk 0:00:08.6]} 36. Nc7
{[%clk 0:00:14.9]} 36... Rxa5 {[%clk 0:00:06.2]} 37. Bxa5 {[%clk 0:00:15.8]}
37... Nc4 {[%clk 0:00:06.7]} 38. Rb5 {[%clk 0:00:12.8]} 38... Nxa3 {[%clk
0:00:03.8]} 39. Rb3 {[%clk 0:00:13.1]} 39... Nc4 {[%clk 0:00:04.1]} 40. Bc3
{[%clk 0:00:09.3]} 40... Bxc3 {[%clk 0:00:03.6]} 41. Rxc3 {[%clk 0:00:10.2]}
41... Ndxb6 {[%clk 0:00:04.2]} 42. Rb1 {[%clk 0:00:09.5]} 42... Rc8 {[%clk
0:00:04.5]} 43. Nb5 {[%clk 0:00:09.8]} 43... Ra8 {[%clk 0:00:04.3]} 44. Nc7
{[%clk 0:00:07]} 44... Ra2 {[%clk 0:00:04.1]} 45. Kg1 {[%clk 0:00:07.1]} 45...
Kg7 {[%clk 0:00:04.2]} 46. Ne8+ {[%clk 0:00:06.9]} 46... Kf8 {[%clk 0:00:02.8]}
47. Nc7 {[%clk 0:00:07.8]} 47... Kg7 {[%clk 0:00:02.2]} 48. Rcb3 {[%clk
0:00:08.3]} 48... Na4 {[%clk 0:00:02.1]} 49. Nd5 {[%clk 0:00:08]} 49... Nd2
{[%clk 0:00:02.5]} 50. Nxe7 {[%clk 0:00:08]} 50... Nxb3 {[%clk 0:00:02.4]} 51.
Rxb3 {[%clk 0:00:08.9]} 51... Rb2 {[%clk 0:00:02.6]} 52. Ra3 {[%clk 0:00:09.3]}
52... Rb4 {[%clk 0:00:02.9]} 53. Nd5 {[%clk 0:00:08.5]} 53... Rb1+ {[%clk
0:00:03.6]} 54. Kg2 {[%clk 0:00:08.8]} 54... Nb6 {[%clk 0:00:04.5]} 55. Nc7
{[%clk 0:00:08.3]} 55... Nc4 {[%clk 0:00:04.7]} 56. Ra8 {[%clk 0:00:07.2]} 56...
h5 {[%clk 0:00:04.5]} 57. Ne8+ {[%clk 0:00:07.5]} 57... Kh7 {[%clk 0:00:04.4]}
58. Ra7 {[%clk 0:00:06.6]} 58... Kg8 {[%clk 0:00:04.4]} 59. Nf6+ {[%clk
0:00:07.2]} 59... Kg7 {[%clk 0:00:04.8]} 60. Ne4 {[%clk 0:00:08.1]} 60... Rd1
{[%clk 0:00:03.1]} 61. Ng5 {[%clk 0:00:08.1]} 61... Ne5 {[%clk 0:00:02.9]} 62.
f4 {[%clk 0:00:08.8]} 62... Rd2+ {[%clk 0:00:03.3]} 63. Kf1 {[%clk 0:00:09.4]}
63... Ng4 {[%clk 0:00:02.2]} 64. Rxf7+ {[%clk 0:00:10.1]} 64... Kg8 {[%clk
0:00:02.7]} 65. Re7 {[%clk 0:00:10]} 65... c4 {[%clk 0:00:03.4]} 66. Ke1 {[%clk
0:00:06.7]} 66... c3 {[%clk 0:00:03.5]} 67. Re8+ {[%clk 0:00:06.4]} 67... Kg7
{[%clk 0:00:03.6]} 68. Re7+ {[%clk 0:00:07.3]} 68... Kg8 {[%clk 0:00:04.1]} 69.
Rc7 {[%clk 0:00:08.1]} 69... Rd3 {[%clk 0:00:03.5]} 70. e4 {[%clk 0:00:05.3]}
70... Rxg3 {[%clk 0:00:03.6]} 71. f5 {[%clk 0:00:05.4]} 71... gxf5 {[%clk
0:00:03.6]} 72. exf5 {[%clk 0:00:06.3]} 72... Re3+ {[%clk 0:00:04.2]} 73. Kd1
{[%clk 0:00:06]} 73... Nf2+ {[%clk 0:00:04.5]} 74. Kc2 {[%clk 0:00:06.1]} 74...
Ne4 {[%clk 0:00:04.9]} 75. Ne6 {[%clk 0:00:01.9]} 75... Rf3 {[%clk 0:00:04.4]}
76. Rg7+ {[%clk 0:00:02.1]} 76... Kh8 {[%clk 0:00:04.7]} 77. Rf7 {[%clk
0:00:03]} 77... Rf2+ {[%clk 0:00:04.4]} 78. Kc1 {[%clk 0:00:03.7]} 78... c2
{[%clk 0:00:05]} 79. Rf8+ {[%clk 0:00:04]} 79... Kh7 {[%clk 0:00:04.8]} 80. Rf7+
{[%clk 0:00:04.9]} 80... Kg8 {[%clk 0:00:05]} 81. Rf8+ {[%clk 0:00:05.2]} 81...
Kh7 {[%clk 0:00:05.6]} 82. Rf7+ {[%clk 0:00:04.8]} 82... Kg8 {[%clk 0:00:05.5]}
83. Rf8+ {[%clk 0:00:04.7]} 83... Kh7 {[%clk 0:00:06.1]} 1/2-1/2

[Event "Early-Titled-Tuesday-Blitz-February-06-2024"]
[Site "Chess.com"]
[Date "2024.02.06"]
[Round "7"]
[White "Korchmar_Vasiliy"]
[Black "Blitzking642"]
[Result "1-0"]
[WhiteElo "2711"]
[BlackElo "2538"]
[TimeControl "180+1"]
[EndTime "9:19:56 PST"]
[Termination "Korchmar_Vasiliy won on time"]

1. e4 {[%clk 0:03:00.9]} 1... e5 {[%clk 0:02:59]} 2. Nf3 {[%clk 0:03:01.2]} 2...
Nc6 {[%clk 0:02:59.4]} 3. Bc4 {[%clk 0:03:01.3]} 3... d6 {[%clk 0:02:57.8]} 4.
Nc3 {[%clk 0:02:59.3]} 4... Be7 {[%clk 0:02:54.1]} 5. O-O {[%clk 0:02:57.7]}
5... Nf6 {[%clk 0:02:51.2]} 6. h3 {[%clk 0:02:55.6]} 6... O-O {[%clk 0:02:50.4]}
7. a4 {[%clk 0:02:54.1]} 7... Be6 {[%clk 0:02:45]} 8. d3 {[%clk 0:02:53.2]} 8...
d5 {[%clk 0:02:32.2]} 9. exd5 {[%clk 0:02:53.2]} 9... Nxd5 {[%clk 0:02:32.4]}
10. Ne4 {[%clk 0:02:53.8]} 10... f6 {[%clk 0:02:28.3]} 11. d4 {[%clk 0:02:52.2]}
11... exd4 {[%clk 0:01:46.6]} 12. Nxd4 {[%clk 0:02:52.4]} 12... Nxd4 {[%clk
0:01:46.4]} 13. Qxd4 {[%clk 0:02:53.3]} 13... Bf7 {[%clk 0:01:44.5]} 14. Rd1
{[%clk 0:02:33.3]} 14... Nb4 {[%clk 0:01:32.6]} 15. Bxf7+ {[%clk 0:02:31.5]}
15... Rxf7 {[%clk 0:01:30.5]} 16. Qxd8+ {[%clk 0:02:21.7]} 16... Rxd8 {[%clk
0:01:31.4]} 17. Rxd8+ {[%clk 0:02:22]} 17... Bxd8 {[%clk 0:01:31.8]} 18. c3
{[%clk 0:02:10.3]} 18... Nd3 {[%clk 0:01:27.3]} 19. Be3 {[%clk 0:02:10.7]} 19...
Nxb2 {[%clk 0:01:26]} 20. Rb1 {[%clk 0:02:04.8]} 20... Nxa4 {[%clk 0:01:24.5]}
21. Rxb7 {[%clk 0:02:05.1]} 21... Re7 {[%clk 0:01:13.9]} 22. Nc5 {[%clk
0:01:40.4]} 22... Nxc5 {[%clk 0:00:58]} 23. Bxc5 {[%clk 0:01:41.3]} 23... Re1+
{[%clk 0:00:58.7]} 24. Kh2 {[%clk 0:01:41.4]} 24... Kf7 {[%clk 0:00:58.2]} 25.
Rxa7 {[%clk 0:01:40.4]} 25... Rc1 {[%clk 0:00:54.6]} 26. Bb4 {[%clk 0:01:38.2]}
26... Ke6 {[%clk 0:00:52.5]} 27. g4 {[%clk 0:01:29.2]} 27... g6 {[%clk
0:00:48.7]} 28. Kg2 {[%clk 0:01:27.2]} 28... h5 {[%clk 0:00:48.3]} 29. gxh5
{[%clk 0:01:15.5]} 29... gxh5 {[%clk 0:00:49.2]} 30. Ra5 {[%clk 0:01:16.3]}
30... h4 {[%clk 0:00:44.3]} 31. Kf3 {[%clk 0:01:02.1]} 31... Be7 {[%clk
0:00:37.3]} 32. Ra6+ {[%clk 0:00:46.9]} 32... Kd7 {[%clk 0:00:32.9]} 33. Kg4
{[%clk 0:00:40.5]} 33... Bxb4 {[%clk 0:00:30.7]} 34. cxb4 {[%clk 0:00:41.4]}
34... Rc4+ {[%clk 0:00:30.2]} 35. f4 {[%clk 0:00:42]} 35... Ke7 {[%clk
0:00:27.6]} 36. Ra7 {[%clk 0:00:40.6]} 36... Ke6 {[%clk 0:00:24.9]} 37. b5
{[%clk 0:00:37]} 37... Rc5 {[%clk 0:00:15.4]} 38. Ra6+ {[%clk 0:00:36.3]} 38...
Kf7 {[%clk 0:00:14.7]} 39. Rc6 {[%clk 0:00:34.5]} 39... Rxb5 {[%clk 0:00:13]}
40. Rxc7+ {[%clk 0:00:34.7]} 40... Kg6 {[%clk 0:00:13.4]} 41. Rc3 {[%clk
0:00:21.1]} 41... Rb4 {[%clk 0:00:10.5]} 42. Rf3 {[%clk 0:00:20.4]} 42... f5+
{[%clk 0:00:08.5]} 43. Kxh4 {[%clk 0:00:20.8]} 43... Kh6 {[%clk 0:00:09]} 44.
Kg3 {[%clk 0:00:16.2]} 44... Kh5 {[%clk 0:00:08.9]} 45. h4 {[%clk 0:00:13.9]}
45... Rd4 {[%clk 0:00:08.9]} 46. Re3 {[%clk 0:00:11.2]} 46... Rc4 {[%clk
0:00:09.1]} 47. Rb3 {[%clk 0:00:10]} 47... Rd4 {[%clk 0:00:09.2]} 48. Rc3 {[%clk
0:00:09]} 48... Re4 {[%clk 0:00:09.1]} 49. Rc5 {[%clk 0:00:04.8]} 49... Re3+
{[%clk 0:00:08.8]} 50. Kf2 {[%clk 0:00:05.4]} 50... Rh3 {[%clk 0:00:08.4]} 51.
Rxf5+ {[%clk 0:00:04.9]} 51... Kg4 {[%clk 0:00:08.9]} 52. Rf8 {[%clk 0:00:03.2]}
52... Rxh4 {[%clk 0:00:08.9]} 53. Ke3 {[%clk 0:00:03.7]} 53... Rh7 {[%clk
0:00:06.6]} 54. Rg8+ {[%clk 0:00:03]} 54... Kf5 {[%clk 0:00:06]} 55. Rg5+ {[%clk
0:00:03.4]} 55... Kf6 {[%clk 0:00:06.3]} 56. Ra5 {[%clk 0:00:03.4]} 56... Rb7
{[%clk 0:00:05.6]} 57. Ke4 {[%clk 0:00:03.3]} 57... Rb4+ {[%clk 0:00:05.6]} 58.
Kf3 {[%clk 0:00:03.9]} 58... Rb3+ {[%clk 0:00:06]} 59. Kg4 {[%clk 0:00:04.5]}
59... Rb1 {[%clk 0:00:05.8]} 60. Ra6+ {[%clk 0:00:05]} 60... Kf7 {[%clk
0:00:05.7]} 61. Kg5 {[%clk 0:00:05.6]} 61... Rb2 {[%clk 0:00:04.1]} 62. Ra7+
{[%clk 0:00:05]} 62... Kf8 {[%clk 0:00:03.7]} 63. f5 {[%clk 0:00:05.5]} 63...
Rb6 {[%clk 0:00:03.2]} 64. Rc7 {[%clk 0:00:05.4]} 64... Ra6 {[%clk 0:00:02.7]}
65. Rc2 {[%clk 0:00:05.8]} 65... Rb6 {[%clk 0:00:03]} 66. Re2 {[%clk 0:00:06.4]}
66... Ra6 {[%clk 0:00:03.3]} 67. Re6 {[%clk 0:00:06.4]} 67... Ra1 {[%clk
0:00:02.7]} 68. Kf6 {[%clk 0:00:06.2]} 68... Ra7 {[%clk 0:00:02.9]} 69. Rb6
{[%clk 0:00:06.1]} 69... Rf7+ {[%clk 0:00:03.2]} 70. Kg6 {[%clk 0:00:06.1]}
70... Rg7+ {[%clk 0:00:03.5]} 71. Kf6 {[%clk 0:00:06.3]} 71... Rf7+ {[%clk
0:00:03.9]} 72. Ke5 {[%clk 0:00:06.7]} 72... Re7+ {[%clk 0:00:04.2]} 73. Kf4
{[%clk 0:00:07]} 73... Rc7 {[%clk 0:00:04.1]} 74. Kg5 {[%clk 0:00:06.9]} 74...
Kf7 {[%clk 0:00:04.2]} 75. Rh6 {[%clk 0:00:07]} 75... Rc2 {[%clk 0:00:03.5]} 76.
Rh7+ {[%clk 0:00:07.3]} 76... Kg8 {[%clk 0:00:03.8]} 77. Ra7 {[%clk 0:00:07.7]}
77... Kf8 {[%clk 0:00:02.7]} 78. Kg6 {[%clk 0:00:07.5]} 78... Rc1 {[%clk
0:00:02.2]} 79. Ra8+ {[%clk 0:00:07]} 79... Ke7 {[%clk 0:00:02.6]} 80. f6+
{[%clk 0:00:07.5]} 80... Ke6 {[%clk 0:00:01.5]} 81. Re8+ {[%clk 0:00:07.5]}
81... Kd7 {[%clk 0:00:01.7]} 82. Kf7 {[%clk 0:00:08.1]} 82... Rh1 {[%clk
0:00:01.2]} 83. Re2 {[%clk 0:00:08.2]} 1-0